[Event "Najdorf Memorial-B 2022"]
[Site "Warsaw"]
[Date "2022.07.12"]
[Round "4.9"]
[White "Iwaszkiewicz, Krzysztof"]
[Black "Kalus, Franciszek"]
[Result "1/2-1/2"]
[ECO "D00"]
[WhiteElo "1630"]
[BlackElo "1344"]
[Annotator "NA"]
[PlyCount "114"]
[EventDate "2022.07.09"]
[EventType "swiss"]
[EventCountry "POL"]
[SourceTitle "playchess.com"]
[Source "ChessBase"]
[SourceQuality "1"]
[TimeControl "40/5400+30:1800+30"]

1. d4 {[%emt 0:00:02]} d5 2. Bf4 {[%emt 0:00:05]} Nf6 {[%emt 0:16:12]} 3. e3 {[%emt 0:00:04]} c5 {[%emt 0:00:10]} 4. c3 {[%emt 0:00:04]} Nc6 {[%emt 0:00:01]} 5. Nd2 {[%emt 0:00:06]} Bf5 {[%emt 0:00:28]} 6. Qb3 {[%emt 0:00:45]} Qd7 {[%emt 0:00:07]} 7. dxc5 {[%emt 0:01:01]} e5 {[%emt 0:00:33]} 8. Bg3 {[%emt 0:00:02]} Bxc5 {[%emt 0:00:12]} 9. Ngf3 {[%emt 0:00:04]} Bd6 {[%emt 0:00:45]} 10. Bb5 {[%emt 0:00:27]} Qe7 {[%emt 0:01:37]} 11. O-O {[%emt 0:08:07]} O-O {[%emt 0:03:47]} 12. Bxc6 {[%emt 0:02:24]} bxc6 {[%emt 0:00:09]} 13. c4 {[%emt 0:01:10]} Rab8 {[%emt 0:05:31]} 14. Qc3 {[%emt 0:00:34]} Rfe8 {[%emt 0:00:13]} 15. a3 {[%emt 0:00:42]} Ne4 {[%emt 0:09:53]} 16. Nxe4 {[%emt 0:05:13]} Bxe4 {[%emt 0:00:02]} 17. Nd2 {[%emt 0:00:12]} Bf5 {[%emt 0:00:04]} 18. Rac1 {[%emt 0:12:37]} f6 {[%emt 0:04:34]} 19. Rfd1 {[%emt 0:01:24]} Bg4 {[%emt 0:05:11]} 20. Re1 {[%emt 0:02:53]} Be6 {[%emt 0:02:17]} 21. b4 {[%emt 0:10:50]} a5 {[%emt 0:01:28]} 22. c5 {[%emt 0:00:08]} axb4 {[%emt 0:00:03]} 23. axb4 {[%emt 0:00:15]} Bc7 {[%emt 0:00:03]} 24. Ra1 {[%emt 0:00:42]} Rb7 {[%emt 0:00:41]} 25. Ra6 {[%emt 0:01:38]} Qd7 {[%emt 0:01:29]} 26. Qa3 {[%emt 0:11:28]} Reb8 {[%emt 0:02:38]} 27. Qa4 {[%emt 0:01:41]} Rxb4 {[%emt 0:00:18]} 28. Qxc6 {[%emt 0:00:06]} Rb2 {[%emt 0:01:43]} 29. Nf3 {[%emt 0:04:00]} Bg4 {[%emt 0:01:57]} 30. h3 {[%emt 0:10:45]} Qxc6 {[%emt 0:01:41]} 31. Rxc6 {[%emt 0:00:08]} Bxf3 {[%emt 0:00:08]} 32. Rxc7 {[%emt 0:00:05]} Be4 {[%emt 0:01:15]} 33. Kh2 {[%emt 0:02:53]} Rb1 {[%emt 0:01:04]} 34. f3 {[%emt 0:00:35]} Bf5 {[%emt 0:00:39]} 35. c6 {[%emt 0:01:37]} Rxe1 {[%emt 0:00:23]} 36. Bxe1 {[%emt 0:00:05]} Rc8 {[%emt 0:00:16]} 37. Ba5 {[%emt 0:03:51]} Rxc7 {[%emt 0:00:21]} 38. Bxc7 {[%emt 0:00:05]} d4 {[%emt 0:01:30]} 39. exd4 {[%emt 0:00:15]} exd4 {[%emt 0:00:06]} 40. Kg3 {[%emt 0:00:00]} d3 {[%emt 0:00:00]} 41. Ba5 {[%emt 0:02:09]} Kf7 {[%emt 0:01:46]} 42. Kf4 {[%emt 0:00:33]} Bc8 {[%emt 0:00:11]} 43. Ke4 {[%emt 0:00:22]} Ba6 {[%emt 0:00:36]} 44. Kd5 {[%emt 0:03:33]} Ke7 {[%emt 0:01:03]} 45. Kc5 {[%emt 0:01:56]} Bc8 {[%emt 0:00:31]} 46. Bb4 {[%emt 0:02:46]} Kd8 {[%emt 0:00:24]} 47. Kd6 {[%emt 0:09:35]} Ba6 {[%emt 0:00:29]} 48. g3 {[%emt 0:01:09]} Bc4 {[%emt 0:00:46]} 49. Ba5+ {[%emt 0:00:50]} Kc8 {[%emt 0:00:02]} 50. f4 {[%emt 0:00:15]} f5 {[%emt 0:03:52]} 51. Ke7 {[%emt 0:06:33]} g6 {[%emt 0:01:17]} 52. Kd6 {[%emt 0:03:41]} h5 {[%emt 0:01:55]} 53. h4 {[%emt 0:00:46]} Bb5 {[%emt 0:01:37]} 54. c7 {[%emt 0:01:09]} Ba4 {[%emt 0:00:30]} 55. Ke7 {[%emt 0:00:23]} d2 {[%emt 0:00:15]} 56. Bxd2 {[%emt 0:00:05]} Kxc7 {[%emt 0:00:07]} 57. Kf7 {[%emt 0:00:12]} Bd1 {[%emt 0:00:16]} 1/2-1/2

[Event "Najdorf Memorial-B 2022"]
[Site "Warsaw"]
[Date "2022.07.12"]
[Round "4.10"]
[White "Chekhani, Anna"]
[Black "Czarnowicz, Michal"]
[Result "1-0"]
[ECO "E92"]
[WhiteElo "1575"]
[BlackElo "1346"]
[Annotator "NA"]
[PlyCount "99"]
[EventDate "2022.07.09"]
[EventType "swiss"]
[EventCountry "POL"]
[SourceTitle "playchess.com"]
[Source "ChessBase"]
[SourceQuality "1"]
[TimeControl "40/5400+30:1800+30"]

1. d4 {[%emt 0:00:11]} Nf6 {[%emt 0:00:02]} 2. c4 {[%emt 0:00:11]} g6 {[%emt 0:00:07]} 3. Nc3 {[%emt 0:00:08]} Bg7 {[%emt 0:00:02]} 4. e4 {[%emt 0:00:20]} d6 {[%emt 0:00:02]} 5. Nf3 {[%emt 0:00:21]} O-O {[%emt 0:00:03]} 6. Be2 {[%emt 0:00:18]} e5 {[%emt 0:00:02]} 7. Be3 {[%emt 0:00:23]} Nc6 {[%emt 0:00:06]} 8. d5 {[%emt 0:00:57]} Ne7 {[%emt 0:00:02]} 9. Qb3 {[%emt 0:01:12]} c5 {[%emt 0:03:38]} 10. Nd2 {[%emt 0:04:18]} Qa5 {[%emt 0:04:11]} 11. O-O-O {[%emt 0:09:24]} Bd7 {[%emt 0:00:57]} 12. Qc2 {[%emt 0:24:39]} a6 {[%emt 0:01:26]} 13. a4 {[%emt 0:00:38]} Rfb8 {[%emt 0:02:46]} 14. f3 {[%emt 0:10:07]} b5 {[%emt 0:00:28]} 15. cxb5 axb5 16. Bxb5 {[%emt 0:05:14]} Bxb5 {[%emt 0:03:06]} 17. axb5 {[%emt 0:08:03]} Ne8 {[%emt 0:01:44]} 18. Nc4 {[%emt 0:02:52]} Qb4 {[%emt 0:00:45]} 19. Na3 {[%emt 0:00:20]} Nc7 {[%emt 0:06:04]} 20. Bd2 {[%emt 0:13:12]} c4 {[%emt 0:02:10]} 21. Ncb1 {[%emt 0:03:21]} Qc5 {[%emt 0:03:36]} 22. Qxc4 {[%emt 0:00:30]} Qxc4+ {[%emt 0:00:29]} 23. Nxc4 {[%emt 0:00:06]} Nxb5 {[%emt 0:00:08]} 24. Nba3 {[%emt 0:00:43]} Nxa3 {[%emt 0:01:17]} 25. Nxa3 {[%emt 0:00:06]} Nc8 {[%emt 0:01:49]} 26. Nc4 {[%emt 0:03:54]} Ra4 {[%emt 0:00:56]} 27. Na5 {[%emt 0:01:36]} Ra2 {[%emt 0:02:56]} 28. Bc3 {[%emt 0:00:27]} Rb5 {[%emt 0:01:11]} 29. Nc6 {[%emt 0:06:18]} Na7 {[%emt 0:00:18]} 30. Nxa7 {[%emt 0:00:20]} Rxa7 {[%emt 0:00:01]} 31. Kc2 {[%emt 0:00:08]} Bh6 {[%emt 0:00:20]} 32. Ra1 {[%emt 0:00:22]} Rab7 {[%emt 0:00:31]} 33. Ra6 {[%emt 0:00:31]} R5b6 {[%emt 0:00:02]} 34. Rxb6 {[%emt 0:00:39]} Rxb6 {[%emt 0:00:02]} 35. Ra1 {[%emt 0:00:22]} Be3 {[%emt 0:00:17]} 36. Ra8+ {[%emt 0:00:27]} Kg7 {[%emt 0:00:07]} 37. Rc8 {[%emt 0:00:03]} Bc5 {[%emt 0:00:28]} 38. Bxe5+ {[%emt 0:00:07]} dxe5 {[%emt 0:01:06]} 39. Rxc5 {[%emt 0:00:08]} Ra6 {[%emt 0:00:58]} 40. Kc3 {[%emt 0:00:00]} Ra1 {[%emt 0:00:00]} 41. d6 {[%emt 0:01:37]} Kf6 {[%emt 0:00:35]} 42. Rd5 {[%emt 0:01:06]} Ra8 {[%emt 0:00:32]} 43. d7 {[%emt 0:00:09]} Rd8 {[%emt 0:00:01]} 44. Kc4 {[%emt 0:00:14]} Ke6 {[%emt 0:00:23]} 45. Kc5 {[%emt 0:00:10]} Rxd7 {[%emt 0:00:07]} 46. Rxd7 {[%emt 0:00:04]} Kxd7 {[%emt 0:00:03]} 47. Kd5 {[%emt 0:00:31]} f6 {[%emt 0:00:02]} 48. b4 {[%emt 0:00:04]} h5 {[%emt 0:00:29]} 49. b5 {[%emt 0:00:06]} h4 {[%emt 0:00:13]} 50. b6 {[%emt 0:00:10]} 1-0

[Event "Najdorf Memorial-B 2022"]
[Site "Warsaw"]
[Date "2022.07.12"]
[Round "4.11"]
[White "Tomalak, Stanislaw"]
[Black "Zglenicki, Jakub"]
[Result "1-0"]
[ECO "A04"]
[WhiteElo "1554"]
[BlackElo "1157"]
[Annotator "NA"]
[PlyCount "121"]
[EventDate "2022.07.09"]
[EventType "swiss"]
[EventCountry "POL"]
[SourceTitle "playchess.com"]
[Source "ChessBase"]
[SourceQuality "1"]
[TimeControl "40/5400+30:1800+30"]

1. Nf3 {[%emt 0:00:04]} Nc6 {[%emt 0:00:10]} 2. g3 {[%emt 0:00:07]} d5 {[%emt 0:01:15]} 3. d3 {[%emt 0:00:15]} e5 {[%emt 0:00:24]} 4. Nbd2 {[%emt 0:00:15]} f5 {[%emt 0:03:13]} 5. e4 {[%emt 0:09:52]} fxe4 {[%emt 0:00:36]} 6. dxe4 {[%emt 0:00:11]} dxe4 {[%emt 0:00:21]} 7. Nxe4 {[%emt 0:00:27]} Qxd1+ {[%emt 0:00:21]} 8. Kxd1 {[%emt 0:00:07]} Bf5 {[%emt 0:00:25]} 9. Nfd2 {[%emt 0:04:51]} O-O-O {[%emt 0:00:52]} 10. Bg2 {[%emt 0:01:47]} Nd4 {[%emt 0:00:51]} 11. c3 {[%emt 0:01:14]} Bg4+ {[%emt 0:00:35]} 12. f3 {[%emt 0:01:41]} Nxf3 {[%emt 0:00:09]} 13. Kc2 {[%emt 0:00:40]} Nxd2 {[%emt 0:01:12]} 14. Bxd2 {[%emt 0:01:28]} Nf6 {[%emt 0:00:57]} 15. Rae1 {[%emt 0:03:33]} Bf5 {[%emt 0:05:03]} 16. Rhf1 {[%emt 0:03:44]} Nxe4 {[%emt 0:02:53]} 17. Bxe4 {[%emt 0:02:01]} Bh3 {[%emt 0:01:36]} 18. Rf7 {[%emt 0:12:02]} g6 {[%emt 0:00:33]} 19. Bg5 {[%emt 0:01:40]} Rd7 {[%emt 0:01:24]} 20. Rxd7 {[%emt 0:03:13]} Bxd7 {[%emt 0:00:24]} 21. Bf6 {[%emt 0:00:21]} Rg8 {[%emt 0:00:36]} 22. Bd5 {[%emt 0:01:31]} Bg7 {[%emt 0:00:29]} 23. Bxg8 {[%emt 0:00:16]} Bxf6 {[%emt 0:00:10]} 24. Bxh7 {[%emt 0:00:16]} Bf5+ {[%emt 0:00:16]} 25. Kd2 {[%emt 0:02:13]} Bg5+ {[%emt 0:00:10]} 26. Ke2 {[%emt 0:01:08]} Kd7 {[%emt 0:00:27]} 27. h4 {[%emt 0:03:23]} Bf6 {[%emt 0:00:49]} 28. Kf3 {[%emt 0:02:28]} Ke6 {[%emt 0:02:53]} 29. g4 {[%emt 0:07:39]} e4+ {[%emt 0:00:11]} 30. Kg3 {[%emt 0:01:31]} Bxh4+ {[%emt 0:00:29]} 31. Kxh4 {[%emt 0:00:17]} g5+ {[%emt 0:00:05]} 32. Kxg5 {[%emt 0:00:34]} Bxh7 {[%emt 0:00:11]} 33. Kf4 {[%emt 0:00:56]} Kf6 {[%emt 0:03:06]} 34. g5+ {[%emt 0:01:08]} Kf7 {[%emt 0:01:08]} 35. Rh1 {[%emt 0:00:48]} Bg6 {[%emt 0:01:08]} 36. Rh8 {[%emt 0:00:37]} e3 {[%emt 0:00:30]} 37. Kxe3 {[%emt 0:00:25]} Bb1 {[%emt 0:00:08]} 38. a3 {[%emt 0:00:26]} Bf5 {[%emt 0:00:42]} 39. Rb8 {[%emt 0:00:29]} b6 {[%emt 0:00:20]} 40. Rb7 {[%emt 0:00:00]} Kg6 {[%emt 0:00:00]} 41. Kf4 {[%emt 0:00:30]} c5 {[%emt 0:01:33]} 42. Rxa7 {[%emt 0:00:40]} Bd3 {[%emt 0:00:45]} 43. Rb7 {[%emt 0:00:32]} b5 {[%emt 0:00:14]} 44. Rb6+ {[%emt 0:00:12]} Kf7 {[%emt 0:00:14]} 45. Ke5 {[%emt 0:00:22]} Kg7 {[%emt 0:00:19]} 46. Kd5 {[%emt 0:01:15]} c4 {[%emt 0:00:31]} 47. Rxb5 {[%emt 0:00:52]} Kg6 {[%emt 0:00:11]} 48. Kd4 {[%emt 0:00:25]} Bc2 {[%emt 0:00:35]} 49. Kxc4 {[%emt 0:00:15]} Bd1 {[%emt 0:00:12]} 50. Re5 {[%emt 0:00:53]} Ba4 {[%emt 0:00:15]} 51. b3 {[%emt 0:00:24]} Bd7 {[%emt 0:00:07]} 52. a4 {[%emt 0:00:21]} Kf7 {[%emt 0:00:07]} 53. a5 {[%emt 0:00:20]} Bc6 {[%emt 0:00:06]} 54. a6 {[%emt 0:00:27]} Kf8 {[%emt 0:00:23]} 55. b4 {[%emt 0:00:31]} Kf7 {[%emt 0:00:16]} 56. b5 {[%emt 0:00:04]} Ba8 {[%emt 0:00:07]} 57. b6 {[%emt 0:00:19]} Bg2 {[%emt 0:00:20]} 58. b7 {[%emt 0:00:17]} Bf1+ {[%emt 0:00:06]} 59. Kc5 {[%emt 0:00:13]} Bxa6 {[%emt 0:00:09]} 60. b8=Q {[%emt 0:00:42]} Bd3 {[%emt 0:00:33]} 61. Qd6 {[%emt 0:00:21]} 1-0

[Event "Najdorf Memorial-B 2022"]
[Site "Warsaw"]
[Date "2022.07.12"]
[Round "4.12"]
[White "Wnuk, Piotr"]
[Black "Leszczewicz, Karol"]
[Result "1/2-1/2"]
[ECO "A03"]
[WhiteElo "1412"]
[BlackElo "1519"]
[Annotator "NA"]
[PlyCount "56"]
[EventDate "2022.07.09"]
[EventType "swiss"]
[EventCountry "POL"]
[SourceTitle "playchess.com"]
[Source "ChessBase"]
[SourceQuality "1"]
[TimeControl "40/5400+30:1800+30"]

1. f4 {[%emt 0:00:02]} d5 {[%emt 0:01:02]} 2. Nf3 {[%emt 0:00:06]} Nf6 {[%emt 0:00:52]} 3. e3 {[%emt 0:00:05]} c5 {[%emt 0:10:51]} 4. b3 {[%emt 0:00:53]} g6 {[%emt 0:00:41]} 5. Bb2 {[%emt 0:00:18]} Bg7 {[%emt 0:00:10]} 6. Be2 {[%emt 0:00:29]} O-O {[%emt 0:00:39]} 7. O-O {[%emt 0:00:26]} Nc6 {[%emt 0:00:30]} 8. Ne5 {[%emt 0:00:41]} Nxe5 {[%emt 0:06:44]} 9. Bxe5 {[%emt 0:00:23]} Ne4 {[%emt 0:00:21]} 10. Bxg7 {[%emt 0:00:17]} Kxg7 {[%emt 0:00:10]} 11. d3 {[%emt 0:00:16]} Nf6 {[%emt 0:00:35]} 12. Nd2 {[%emt 0:00:25]} Re8 {[%emt 0:17:01]} 13. Bf3 {[%emt 0:09:51]} Qd6 {[%emt 0:14:33]} 14. g3 {[%emt 0:05:05]} h5 {[%emt 0:02:21]} 15. e4 {[%emt 0:01:26]} dxe4 {[%emt 0:00:26]} 16. Nxe4 {[%emt 0:00:03]} Qd4+ {[%emt 0:05:05]} 17. Kh1 {[%emt 0:05:48]} Nxe4 {[%emt 0:02:15]} 18. dxe4 {[%emt 0:00:30]} Qxd1 {[%emt 0:03:54]} 19. Raxd1 {[%emt 0:00:25]} b6 {[%emt 0:02:29]} 20. e5 {[%emt 0:00:31]} Rb8 {[%emt 0:04:23]} 21. c4 {[%emt 0:02:47]} Bh3 {[%emt 0:00:57]} 22. Bg2 {[%emt 0:00:40]} Bxg2+ {[%emt 0:00:09]} 23. Kxg2 {[%emt 0:00:02]} Red8 {[%emt 0:00:12]} 24. Kf3 {[%emt 0:00:34]} e6 {[%emt 0:00:16]} 25. Ke4 {[%emt 0:00:54]} Kf8 {[%emt 0:00:09]} 26. h3 {[%emt 0:00:27]} Ke7 {[%emt 0:00:07]} 27. a4 {[%emt 0:02:20]} a5 {[%emt 0:00:24]} 28. h4 {[%emt 0:00:14]} Rbc8 {[%emt 0:00:33]} 1/2-1/2

[Event "Najdorf Memorial-B 2022"]
[Site "Warsaw"]
[Date "2022.07.12"]
[Round "4.13"]
[White "Borys, Marek"]
[Black "Prokopiuk, Jakub"]
[Result "1/2-1/2"]
[ECO "E76"]
[WhiteElo "1314"]
[BlackElo "1481"]
[Annotator "NA"]
[PlyCount "52"]
[EventDate "2022.07.09"]
[EventType "swiss"]
[EventCountry "POL"]
[SourceTitle "playchess.com"]
[Source "ChessBase"]
[SourceQuality "1"]
[TimeControl "40/5400+30:1800+30"]

1. d4 {[%emt 0:00:06]} Nf6 {[%emt 0:00:10]} 2. c4 {[%emt 0:00:11]} g6 {[%emt 0:00:02]} 3. Nc3 {[%emt 0:00:12]} Bg7 {[%emt 0:00:06]} 4. e4 {[%emt 0:00:16]} d6 {[%emt 0:00:07]} 5. f4 {[%emt 0:00:19]} O-O {[%emt 0:00:06]} 6. Bd3 {[%emt 0:00:36]} Na6 {[%emt 0:00:19]} 7. a3 {[%emt 0:01:55]} e5 {[%emt 0:08:05]} 8. fxe5 {[%emt 0:00:53]} dxe5 {[%emt 0:02:19]} 9. d5 {[%emt 0:00:24]} Nc5 {[%emt 0:02:52]} 10. Nf3 {[%emt 0:07:41]} Bg4 {[%emt 0:02:23]} 11. O-O {[%emt 0:01:07]} Nfd7 {[%emt 0:13:45]} 12. h3 {[%emt 0:21:05]} Bxf3 {[%emt 0:00:33]} 13. Rxf3 {[%emt 0:00:44]} Nxd3 {[%emt 0:00:43]} 14. Qxd3 {[%emt 0:01:41]} Nc5 {[%emt 0:02:00]} 15. Qc2 {[%emt 0:03:13]} a5 {[%emt 0:04:19]} 16. Be3 {[%emt 0:02:57]} Qe7 {[%emt 0:02:57]} 17. Raf1 {[%emt 0:03:59]} a4 {[%emt 0:14:06]} 18. Kh1 {[%emt 0:24:44]} Nb3 19. Ne2 c6 {[%emt 0:09:52]} 20. Nc3 {[%emt 0:03:12]} Nd4 {[%emt 0:09:32]} 21. Bxd4 {[%emt 0:00:07]} exd4 {[%emt 0:00:11]} 22. Nxa4 {[%emt 0:03:27]} Rae8 {[%emt 0:03:00]} 23. dxc6 {[%emt 0:04:12]} bxc6 {[%emt 0:00:26]} 24. b4 Qxe4 {[%emt 0:00:34]} 25. Qxe4 {[%emt 0:01:48]} Rxe4 {[%emt 0:00:02]} 26. Nc5 {[%emt 0:03:08]} Re3 {[%emt 0:01:39]} 1/2-1/2

[Event "Najdorf Memorial-B 2022"]
[Site "Warsaw"]
[Date "2022.07.12"]
[Round "4.14"]
[White "Koziol, Pawel"]
[Black "Kobus, Stanislaw"]
[Result "0-1"]
[ECO "A04"]
[WhiteElo "1771"]
[BlackElo "1427"]
[Annotator "NA"]
[PlyCount "54"]
[EventDate "2022.07.09"]
[EventType "swiss"]
[EventCountry "POL"]
[SourceTitle "playchess.com"]
[Source "ChessBase"]
[SourceQuality "1"]
[TimeControl "40/5400+30:1800+30"]

1. Nf3 {[%emt 0:00:04]} g6 {[%emt 0:14:27]} 2. g3 {[%emt 0:00:18]} Bg7 {[%emt 0:00:12]} 3. Bg2 {[%emt 0:00:07]} e5 {[%emt 0:00:17]} 4. d3 {[%emt 0:00:57]} d6 {[%emt 0:00:26]} 5. c4 {[%emt 0:00:27]} Nc6 {[%emt 0:00:41]} 6. Nc3 {[%emt 0:00:22]} h6 {[%emt 0:01:34]} 7. Rb1 {[%emt 0:01:19]} a5 {[%emt 0:00:22]} 8. a3 {[%emt 0:00:58]} Be6 {[%emt 0:01:46]} 9. b4 {[%emt 0:02:04]} axb4 {[%emt 0:00:17]} 10. axb4 {[%emt 0:00:05]} Qd7 {[%emt 0:00:19]} 11. Bd2 {[%emt 0:05:33]} Nge7 {[%emt 0:00:54]} 12. b5 {[%emt 0:04:50]} Nd8 {[%emt 0:02:37]} 13. O-O {[%emt 0:04:27]} Bh3 {[%emt 0:04:14]} 14. Qb3 {[%emt 0:04:54]} Bxg2 {[%emt 0:04:47]} 15. Kxg2 {[%emt 0:00:05]} Ne6 {[%emt 0:01:52]} 16. Na4 {[%emt 0:02:21]} b6 {[%emt 0:00:24]} 17. Nc3 {[%emt 0:01:44]} Ng5 {[%emt 0:03:38]} 18. h4 {[%emt 0:00:57]} Qh3+ {[%emt 0:01:46]} 19. Kg1 {[%emt 0:00:04]} Nxf3+ {[%emt 0:07:43]} 20. exf3 {[%emt 0:00:03]} g5 {[%emt 0:04:07]} 21. h5 {[%emt 0:06:45]} Nf5 {[%emt 0:11:06]} 22. Ne4 {[%emt 0:00:23]} Nd4 {[%emt 0:09:42]} 23. Qd1 {[%emt 0:00:13]} f5 {[%emt 0:00:23]} 24. Bc3 {[%emt 0:01:05]} fxe4 {[%emt 0:02:06]} 25. Bxd4 {[%emt 0:00:15]} exd4 {[%emt 0:00:47]} 26. Qe1 {[%emt 0:00:58]} e3 {[%emt 0:01:16]} 27. fxe3 {[%emt 0:00:21]} Ra2 {[%emt 0:00:21]} 0-1

[Event "Najdorf Memorial-B 2022"]
[Site "Warsaw"]
[Date "2022.07.12"]
[Round "4.15"]
[White "Morczynski, Joachim"]
[Black "Wasylewski, Marcin"]
[Result "1-0"]
[ECO "B21"]
[WhiteElo "1762"]
[BlackElo "1412"]
[Annotator "NA"]
[PlyCount "67"]
[EventDate "2022.07.09"]
[EventType "swiss"]
[EventCountry "POL"]
[SourceTitle "playchess.com"]
[Source "ChessBase"]
[SourceQuality "1"]
[TimeControl "40/5400+30:1800+30"]

1. e4 {[%emt 0:00:02]} c5 {[%emt 0:00:04]} 2. d4 {[%emt 0:00:07]} cxd4 {[%emt 0:00:28]} 3. c3 {[%emt 0:00:04]} Nf6 {[%emt 0:03:10]} 4. e5 {[%emt 0:00:06]} Nd5 {[%emt 0:01:10]} 5. Qxd4 {[%emt 0:00:15]} e6 {[%emt 0:01:40]} 6. Nf3 {[%emt 0:00:06]} Nc6 {[%emt 0:02:02]} 7. Qe4 {[%emt 0:00:05]} d6 {[%emt 0:05:32]} 8. exd6 {[%emt 0:00:36]} Nf6 {[%emt 0:03:36]} 9. Qe2 {[%emt 0:00:35]} Bxd6 {[%emt 0:01:51]} 10. g3 {[%emt 0:00:09]} O-O {[%emt 0:02:18]} 11. Bg2 {[%emt 0:00:06]} e5 {[%emt 0:12:48]} 12. O-O {[%emt 0:00:50]} Bg4 {[%emt 0:18:35]} 13. Qc2 {[%emt 0:01:53]} Qc8 {[%emt 0:01:51]} 14. Bg5 {[%emt 0:01:54]} Bf5 {[%emt 0:07:26]} 15. Qe2 {[%emt 0:00:41]} Ne4 {[%emt 0:01:05]} 16. Nbd2 {[%emt 0:05:15]} Nxg5 {[%emt 0:01:09]} 17. Nxg5 {[%emt 0:00:06]} h6 {[%emt 0:02:10]} 18. Nge4 {[%emt 0:01:10]} Bc7 {[%emt 0:01:51]} 19. Nc4 {[%emt 0:04:08]} Rd8 {[%emt 0:03:46]} 20. Rad1 {[%emt 0:02:29]} Qb8 {[%emt 0:10:34]} 21. Qh5 {[%emt 0:04:23]} Bg6 {[%emt 0:01:35]} 22. Qh4 {[%emt 0:02:17]} Na5 {[%emt 0:03:44]} 23. Ne3 {[%emt 0:00:44]} Bb6 {[%emt 0:03:10]} 24. Nd5 {[%emt 0:00:57]} Nc6 {[%emt 0:03:05]} 25. b4 {[%emt 0:05:15]} Qc8 {[%emt 0:03:43]} 26. b5 {[%emt 0:01:06]} Qe6 {[%emt 0:00:51]} 27. bxc6 {[%emt 0:00:14]} bxc6 {[%emt 0:03:30]} 28. Nxb6 {[%emt 0:00:52]} Rxd1 {[%emt 0:00:15]} 29. Nxa8 {[%emt 0:00:42]} Qd5 {[%emt 0:01:13]} 30. Nf6+ {[%emt 0:00:31]} gxf6 {[%emt 0:00:14]} 31. Bxd5 {[%emt 0:00:07]} Rxd5 {[%emt 0:00:25]} 32. Qxf6 {[%emt 0:00:07]} Rd2 {[%emt 0:00:59]} 33. Nc7 {[%emt 0:00:16]} e4 {[%emt 0:00:34]} 34. Ne6 1-0

[Event "Najdorf Memorial-B 2022"]
[Site "Warsaw"]
[Date "2022.07.12"]
[Round "4.16"]
[White "Sternik, Piotr"]
[Black "Mazurek, Jerzy"]
[Result "1/2-1/2"]
[ECO "A46"]
[WhiteElo "1434"]
[BlackElo "1752"]
[Annotator "NA"]
[PlyCount "55"]
[EventDate "2022.07.09"]
[EventType "swiss"]
[EventCountry "POL"]
[SourceTitle "playchess.com"]
[Source "ChessBase"]
[SourceQuality "1"]
[TimeControl "40/5400+30:1800+30"]

1. d4 {[%emt 0:00:02]} Nf6 {[%emt 0:00:06]} 2. Bg5 {[%emt 0:00:15]} e6 {[%emt 0:00:34]} 3. Nf3 {[%emt 0:00:29]} d5 {[%emt 0:00:12]} 4. c4 {[%emt 0:00:06]} Be7 {[%emt 0:00:17]} 5. Nc3 {[%emt 0:00:07]} h6 {[%emt 0:00:06]} 6. Bf4 {[%emt 0:00:40]} O-O {[%emt 0:00:09]} 7. e3 {[%emt 0:00:07]} c5 {[%emt 0:00:05]} 8. dxc5 {[%emt 0:00:50]} Bxc5 {[%emt 0:00:07]} 9. cxd5 {[%emt 0:00:12]} Nxd5 {[%emt 0:00:11]} 10. Nxd5 {[%emt 0:00:13]} exd5 {[%emt 0:00:15]} 11. Be2 {[%emt 0:00:14]} Bb4+ {[%emt 0:06:30]} 12. Nd2 {[%emt 0:00:09]} Nc6 {[%emt 0:00:06]} 13. a3 {[%emt 0:08:15]} Be7 {[%emt 0:10:23]} 14. O-O {[%emt 0:12:29]} Bf5 {[%emt 0:08:39]} 15. Nf3 {[%emt 0:04:27]} Bf6 {[%emt 0:01:22]} 16. Ra2 {[%emt 0:09:24]} d4 {[%emt 0:05:31]} 17. Nxd4 {[%emt 0:02:20]} Nxd4 {[%emt 0:01:09]} 18. exd4 {[%emt 0:02:40]} Be6 {[%emt 0:02:55]} 19. b3 {[%emt 0:00:39]} Qxd4 {[%emt 0:03:43]} 20. Qxd4 {[%emt 0:00:57]} Bxd4 {[%emt 0:00:07]} 21. Rd2 {[%emt 0:00:06]} Bb6 {[%emt 0:09:23]} 22. b4 {[%emt 0:02:05]} Rad8 {[%emt 0:00:54]} 23. Rfd1 {[%emt 0:00:33]} Rxd2 {[%emt 0:01:38]} 24. Rxd2 {[%emt 0:00:02]} Rd8 {[%emt 0:00:36]} 25. Rxd8+ {[%emt 0:02:03]} Bxd8 {[%emt 0:00:05]} 26. Bf3 {[%emt 0:00:23]} b5 {[%emt 0:04:19]} 27. Be3 {[%emt 0:00:41]} a5 {[%emt 0:00:20]} 28. Be2 {[%emt 0:02:17]} 1/2-1/2